bitfinex-derivatives/quotes_BTCF0:USTF0_20250620
["timestamp","ask_amount","ask_price","bid_price","bid_amount"]
[1750442994909,0.52021503,103280.0,103270.0,1.20720251]
[1750442995508,0.18408333,103280.0,103270.0,1.20720251]
[1750442995703,0.18408333,103280.0,103270.0,1.23720251]
[1750442996304,0.19991297,103280.0,103270.0,1.23720251]
[1750442996717,0.18308333,103280.0,103270.0,1.25557244]
[1750442996918,0.18208333,103280.0,103270.0,1.25557244]
[1750442997119,0.18208333,103280.0,103270.0,1.25657244]
[1750442999013,0.37571503,103280.0,103270.0,1.25657244]
[1750442999315,0.18208333,103280.0,103270.0,1.25657244]
[1750442999708,0.20628333,103280.0,103270.0,1.25657244]
[1750442999910,0.20628333,103280.0,103270.0,1.22699715]
[1750442999911,0.39991503,103280.0,103270.0,1.22699715]
[1750443000109,0.39991503,103280.0,103270.0,0.16469464]
[1750443000313,0.97806744,103280.0,103270.0,0.28564514]
[1750443000514,0.8395507,103280.0,103270.0,0.28604514]
[1750443000711,0.44624503,103280.0,103270.0,0.72549755]
[1750443001120,0.44624503,103280.0,103270.0,1.08669755]
[1750443001511,0.44624503,103280.0,103270.0,1.21829755]
[1750443001710,0.44624503,103280.0,103270.0,1.21729755]
[1750443001914,0.44724503,103280.0,103270.0,1.21729755]
[1750443002121,0.44724503,103280.0,103270.0,0.7596505]
[1750443002518,0.25361333,103280.0,103270.0,1.19950291]
[1750443002719,0.11531333,103280.0,103270.0,1.19950291]
[1750443003218,0.002,103280.0,103270.0,1.19850291]
[1750443004123,0.002,103280.0,103270.0,2.09658291]
[1750443004324,0.002,103280.0,103270.0,1.6567305]
[1750443004513,0.1956318,103280.0,103270.0,1.6567305]
[1750443004712,0.1956318,103280.0,103270.0,2.09658291]
[1750443005124,0.1946318,103280.0,103270.0,1.6577305]
[1750443005422,0.1946318,103280.0,103270.0,2.09758291]
[1750443006121,0.1936318,103280.0,103270.0,2.09858291]
[1750443006817,0.30794513,103280.0,103270.0,1.6587305]
[1750443007023,0.30794513,103280.0,103270.0,2.09858291]
[1750443007730,0.30794513,103280.0,103270.0,2.09818291]
[1750443008024,0.30794513,103280.0,103270.0,1.6587305]
[1750443008822,0.30894513,103280.0,103270.0,2.09758291]
[1750443009223,0.30994513,103280.0,103270.0,2.09658291]
[1750443009614,0.30994513,103280.0,103270.0,1.6567305]
[1750443011226,0.81959754,103280.0,103270.0,1.6567305]
[1750443011426,0.88669754,103280.0,103270.0,0.0726]
[1750443011725,1.59733754,103280.0,103270.0,0.5544506]
[1750443012022,1.65538072,103280.0,103270.0,0.5548506]
[1750443012428,1.65538072,103280.0,103270.0,0.1940506]
[1750443012626,1.65538072,103280.0,103270.0,0.5548506]
[1750443012934,1.29286347,103280.0,103270.0,0.5548506]
[1750443013226,1.73271588,103280.0,103270.0,0.5548506]
[1750443013414,1.65538072,103280.0,103270.0,0.1940506]
[1750443014126,1.65538072,103280.0,103270.0,0.5548506]
[1750443014815,1.66602364,103280.0,103270.0,0.0004]
[1750443015018,1.65538072,103280.0,103270.0,0.1940506]
[1750443015218,1.65538072,103280.0,103270.0,0.5548506]
[1750443016526,1.67150047,103280.0,103270.0,0.5548506]
[1750443017929,1.75027742,103280.0,103270.0,0.5548506]
[1750443018325,1.76108088,103280.0,103270.0,0.5548506]
[1750443018627,1.76108088,103280.0,103270.0,0.5548503]
[1750443019229,0.59978501,103280.0,103270.0,0.99470271]
[1750443019434,0.59978501,103280.0,103270.0,0.5548503]
[1750443019622,0.54174183,103280.0,103270.0,0.5548503]
[1750443019928,0.98159424,103280.0,103270.0,0.5548503]
[1750443020129,0.52562208,103280.0,103270.0,0.5548503]
[1750443020317,0.96547449,103280.0,103270.0,0.1940503]
[1750443020630,0.96547449,103280.0,103270.0,0.5548503]
[1750443021524,0.96547449,103280.0,103270.0,0.0004]
[1750443021724,0.96547449,103280.0,103270.0,0.5548505]
[1750443022231,0.88669754,103280.0,103270.0,0.5548505]
[1750443022931,0.88669754,103280.0,103270.0,0.1940505]
[1750443023326,0.50488831,103280.0,103270.0,0.5548505]
[1750443023631,0.88669754,103280.0,103270.0,0.5548505]
[1750443024129,0.94474072,103280.0,103270.0,0.1940505]
[1750443024432,0.88669754,103280.0,103270.0,0.5548505]
[1750443024628,0.44684513,103280.0,103270.0,0.5548505]
[1750443024822,0.94474072,103280.0,103270.0,0.5548505]
[1750443025130,0.88669754,103280.0,103270.0,0.5548505]
[1750443025326,0.44684513,103280.0,103270.0,0.5548505]
[1750443025528,0.30994513,103280.0,103270.0,0.99470291]
[1750443025733,0.002,103280.0,103270.0,1.13180291]
[1750443026733,0.41295185,103290.0,103280.0,0.1936317]
[1750443027033,0.469222,103290.0,103280.0,2.09820411]
[1750443027233,0.52726518,103290.0,103280.0,2.09820411]
[1750443027422,0.41295185,103290.0,103280.0,1.6583517]
[1750443027627,0.96711759,103290.0,103280.0,1.6583517]
[1750443027822,1.10561759,103290.0,103280.0,1.6583517]
[1750443028229,1.10561759,103290.0,103280.0,0.9490317]
[1750443028437,1.10561759,103290.0,103280.0,0.9494317]
[1750443028627,1.04757441,103290.0,103280.0,0.9494317]
[1750443028824,1.04757441,103290.0,103280.0,1.38928411]
[1750443029035,0.14901318,103300.0,103290.0,0.1936129]
[1750443029230,0.39887753,103300.0,103290.0,1.84324531]
[1750443029429,0.18207333,103300.0,103290.0,1.84324531]
[1750443029834,0.06776,103300.0,103290.0,2.28309772]
[1750443030530,0.06876,103300.0,103290.0,2.28309772]
[1750443030731,0.07076,103300.0,103290.0,2.28309772]
[1750443030932,0.07076,103300.0,103290.0,1.84324531]
[1750443031231,0.06976,103300.0,103290.0,1.84324531]
[1750443031423,0.06976,103300.0,103290.0,1.84424531]
[1750443032032,0.06976,103300.0,103290.0,2.28409772]
[1750443032538,0.06976,103300.0,103290.0,2.30409772]
[1750443032736,0.06776,103300.0,103290.0,2.30409772]
[1750443032933,0.06876,103300.0,103290.0,2.30409772]
[1750443034636,0.06876,103300.0,103290.0,2.38409772]
[1750443036247,0.06876,103300.0,103290.0,2.46328117]
[1750443037639,0.2623542,103300.0,103290.0,2.46328117]
[1750443037841,0.06876,103300.0,103290.0,2.02342876]
[1750443038036,0.2623542,103300.0,103290.0,2.02342876]
[1750443038238,0.06876,103300.0,103290.0,2.02342876]
[1750443038440,0.06876,103300.0,103290.0,2.46328117]
[1750443038735,0.06876,103300.0,103290.0,2.36328117]
[1750443038942,0.06876,103300.0,103290.0,2.47328117]
[1750443040043,0.06876,103300.0,103290.0,2.71328117]
[1750443040232,0.06876,103300.0,103290.0,2.50328117]
[1750443040435,0.06876,103300.0,103290.0,2.73328117]
[1750443040845,0.06876,103300.0,103290.0,2.36328117]
[1750443041047,0.06876,103300.0,103290.0,2.51328117]
[1750443041847,0.06876,103300.0,103290.0,2.36328117]
[1750443042043,0.06876,103300.0,103290.0,2.69328117]
[1750443042544,0.0323262,103300.0,103290.0,2.69328117]
[1750443042746,0.3749136,103340.0,103330.0,0.193538]
[1750443043044,0.133,103340.0,103330.0,0.57214052]
[1750443043244,0.11531333,103340.0,103330.0,1.20669293]
[1750443043643,0.001,103340.0,103330.0,1.20669293]
[1750443043945,0.005,103340.0,103330.0,1.217335]
[1750443044152,0.005,103340.0,103330.0,1.527335]
[1750443044351,0.005,103340.0,103330.0,1.822835]
[1750443044842,0.005,103340.0,103330.0,1.9318947]
[1750443045035,0.006,103340.0,103330.0,1.9318947]
[1750443045439,0.03567,103350.0,103340.0,0.1935192]
[1750443045739,0.03567,103350.0,103340.0,2.43537131]
[1750443046545,0.03667,103350.0,103340.0,1.8864592]
[1750443046748,0.03767,103350.0,103340.0,1.5763792]
[1750443046950,0.34548383,103350.0,103340.0,1.6163392]
[1750443047151,0.34548383,103350.0,103340.0,1.6167392]
[1750443047152,0.47128383,103350.0,103340.0,1.6167392]
[1750443047453,0.47128383,103350.0,103340.0,0.5947192]
[1750443047654,0.47128383,103350.0,103340.0,1.4869592]
[1750443048746,0.47028383,103350.0,103340.0,1.4869592]
[1750443049648,0.47028383,103350.0,103340.0,1.4865592]
[1750443049849,1.01919594,103350.0,103340.0,1.29304]
[1750443050050,1.01919594,103350.0,103340.0,0.0004]
[1750443050257,0.1935193,103340.0,103330.0,0.96891472]
[1750443050450,0.50423263,103340.0,103330.0,0.97891472]
[1750443050963,0.50423263,103340.0,103330.0,0.9894997]
[1750443051858,0.50523263,103340.0,103330.0,0.57404252]
[1750443052158,1.05414474,103340.0,103330.0,0.56404252]
[1750443052347,0.50523263,103340.0,103330.0,0.57214052]
[1750443052551,0.50523263,103340.0,103330.0,0.57254052]
[1750443055154,0.001,103340.0,103330.0,1.83818072]
[1750443055354,0.001,103340.0,103330.0,1.98538072]
[1750443055547,0.001,103340.0,103330.0,1.30926861]
[1750443055548,0.30883333,103340.0,103330.0,1.30926861]
[1750443055749,0.44233333,103340.0,103330.0,1.30926861]
[1750443055950,0.24881333,103340.0,103330.0,1.30926861]
[1750443056150,0.11531333,103340.0,103330.0,1.83818072]
[1750443056350,0.11431333,103340.0,103330.0,1.99918072]
[1750443057058,0.11431333,103340.0,103330.0,1.99818072]
[1750443057446,0.11531333,103340.0,103330.0,1.99718072]
[1750443058552,0.30883403,103340.0,103330.0,1.63346861]
[1750443058758,0.11531333,103340.0,103330.0,2.18238072]
[1750443059159,0.11531333,103340.0,103330.0,2.18338072]
[1750443060260,0.11431333,103340.0,103330.0,2.18438072]
[1750443060858,0.42284008,103350.0,103340.0,0.1935207]
[1750443061059,0.53715341,103350.0,103340.0,0.6195207]
[1750443061765,0.34192294,103350.0,103340.0,0.6195207]
[1750443062465,0.30882673,103350.0,103340.0,0.7476207]
[1750443063563,0.30882673,103350.0,103340.0,0.3256207]
[1750443063757,0.30882673,103350.0,103340.0,0.6864207]
[1750443064864,0.30882673,103350.0,103340.0,1.1868735]
[1750443065661,0.30882673,103350.0,103340.0,0.7476207]
[1750443065960,0.43962673,103350.0,103340.0,0.7476207]
[1750443066170,0.49766991,103350.0,103340.0,0.7476207]
[1750443066469,0.93692271,103350.0,103340.0,0.3868207]
[1750443067365,0.49766991,103350.0,103340.0,0.7476207]
[1750443068966,0.93692271,103350.0,103340.0,0.6212207]
[1750443069267,0.193522,103340.0,103330.0,0.0004]
[1750443069467,2.02274026,103340.0,103330.0,0.0004]
[1750443069667,0.1935407,103330.0,103320.0,0.1935569]
[1750443069971,0.4515407,103330.0,103320.0,0.1935569]
[1750443070269,0.49376136,103330.0,103320.0,0.1935569]
[1750443070661,0.49376136,103330.0,103320.0,0.1939569]
[1750443070862,0.1935594,103320.0,103310.0,1.3304935]
[1750443071161,0.30787273,103320.0,103310.0,1.4004935]
[1750443071568,0.30787273,103320.0,103310.0,0.9612407]
[1750443071763,0.11431333,103320.0,103310.0,1.4004935]
[1750443071969,0.30787273,103320.0,103310.0,1.41104168]
[1750443072270,0.30787273,103320.0,103310.0,1.41604168]
[1750443073072,0.30787273,103320.0,103310.0,1.41304168]
[1750443073863,0.30787273,103320.0,103310.0,0.97378888]
[1750443074062,0.30787273,103320.0,103310.0,0.97418888]
[1750443074671,0.30887273,103320.0,103310.0,0.97218888]
[1750443074870,0.30887273,103320.0,103310.0,1.41144168]
[1750443075175,0.30887273,103320.0,103310.0,2.30020168]
[1750443075372,0.30887273,103320.0,103310.0,1.86094888]
[1750443076064,0.30887273,103320.0,103310.0,1.41144168]
[1750443076372,0.30887273,103320.0,103310.0,1.60650888]
[1750443076768,0.001,103320.0,103310.0,2.04576168]
[1750443077072,0.001,103320.0,103310.0,2.07576168]
[1750443078263,0.2419268,103330.0,103320.0,0.1935592]
[1750443078462,0.35624013,103330.0,103320.0,1.308652]
[1750443078772,0.30785503,103330.0,103320.0,1.308652]
[1750443079071,0.26715725,103340.0,103320.0,1.1150928]
[1750443079261,0.26715725,103340.0,103330.0,1.1850933]
[1750443079262,0.38145988,103340.0,103330.0,1.1850933]
[1750443079467,0.32352716,103340.0,103330.0,1.4499205]
[1750443079673,0.32352716,103340.0,103330.0,1.8891733]
[1750443080574,0.13000546,103340.0,103330.0,1.8891733]
[1750443081164,0.13100546,103340.0,103330.0,1.8891733]
[1750443081562,0.32452716,103340.0,103330.0,1.4499205]
[1750443081767,0.32452716,103340.0,103330.0,1.8891733]
[1750443082177,0.32352716,103340.0,103330.0,1.8911733]
[1750443082873,0.32352736,103340.0,103330.0,1.8911733]
[1750443083068,0.13000546,103340.0,103330.0,1.4519205]
[1750443083274,0.32352736,103340.0,103330.0,1.8911733]
[1750443083577,0.32352736,103340.0,103330.0,1.4519205]
[1750443083773,0.32352736,103340.0,103330.0,1.8911733]
[1750443083974,0.32352736,103340.0,103330.0,1.4519205]
[1750443084376,0.32352736,103340.0,103330.0,1.0911205]
[1750443085778,0.32352736,103340.0,103330.0,1.4519205]
[1750443086378,0.13000546,103340.0,103330.0,1.4519205]
[1750443086575,0.13000546,103340.0,103330.0,1.8911733]
[1750443087676,0.32352806,103340.0,103330.0,1.8911733]
[1750443089775,0.13000546,103340.0,103330.0,1.8911733]
[1750443089977,0.05793272,103360.0,103350.0,0.1935039]
[1750443090183,0.01607813,103360.0,103350.0,2.8708095]
[1750443090480,0.01607813,103360.0,103350.0,2.6153567]
[1750443090982,0.01607813,103360.0,103350.0,3.0546095]
[1750443092387,0.001,103370.0,103360.0,0.1934852]
[1750443092576,0.05793272,103390.0,103380.0,0.1934477]
[1750443092774,0.11431333,103390.0,103380.0,1.8804605]
[1750443093074,0.30774233,103390.0,103380.0,1.5672077]
[1750443093475,0.11431333,103390.0,103380.0,1.5672077]
[1750443094279,0.35522927,103400.0,103390.0,0.193429]
[1750443094484,0.55522927,103400.0,103390.0,0.316029]
[1750443094684,0.6695426,103400.0,103390.0,0.316029]
[1750443094886,0.48049483,103400.0,103390.0,0.33369227]
[1750443095081,0.35709483,103400.0,103390.0,0.33369227]
[1750443095385,0.35709483,103400.0,103390.0,0.69449227]
[1750443095786,0.36109483,103400.0,103390.0,0.75359227]
[1750443096085,0.31272363,103400.0,103390.0,0.75359227]
[1750443096286,0.31272363,103400.0,103390.0,1.30219248]
[1750443096478,0.11931333,103400.0,103390.0,1.30219248]
[1750443096780,0.31272363,103400.0,103390.0,1.30219248]
[1750443097084,0.31272363,103400.0,103390.0,0.94139248]
[1750443097679,0.31072363,103400.0,103390.0,0.94139248]
[1750443097984,0.31072363,103400.0,103390.0,1.30219248]
[1750443097985,0.31072373,103400.0,103390.0,1.30219248]
[1750443098176,0.31072373,103400.0,103390.0,0.75359227]
[1750443098377,0.31072373,103400.0,103390.0,0.94139248]
[1750443098578,0.31072373,103400.0,103390.0,1.30219248]
[1750443100379,0.31072373,103400.0,103390.0,0.94139248]
[1750443100589,0.31072373,103400.0,103390.0,0.39279227]
[1750443101282,0.31072373,103400.0,103390.0,0.94139248]
[1750443101479,0.31072373,103400.0,103390.0,0.39279227]
[1750443102080,0.31072373,103400.0,103390.0,0.19936327]
[1750443102386,1.34012394,103400.0,103390.0,0.39441237]
[1750443102777,0.79152373,103400.0,103390.0,0.39441237]
[1750443102979,0.31072373,103400.0,103390.0,1.30381258]
[1750443103276,0.31072373,103400.0,103390.0,1.43241258]
[1750443104674,0.30872373,103400.0,103390.0,1.43241258]
[1750443105080,0.30872373,103400.0,103390.0,0.88381237]
[1750443106075,0.11531333,103400.0,103390.0,0.88381237]
[1750443106278,0.11531333,103400.0,103390.0,1.43241258]
[1750443106884,0.30872373,103400.0,103390.0,1.43241258]
[1750443107284,0.30972373,103400.0,103390.0,1.43241258]
[1750443107486,0.30972373,103400.0,103390.0,0.88381237]
[1750443107686,0.11631333,103400.0,103390.0,1.43241258]
[1750443107981,0.1954104,103400.0,103390.0,0.88381237]
[1750443108187,0.11631333,103400.0,103390.0,1.43241258]
[1750443108388,0.30972373,103400.0,103390.0,1.43241258]
[1750443108686,0.11631333,103400.0,103390.0,1.43241258]
[1750443108890,0.30972373,103400.0,103390.0,1.43241258]
[1750443109787,0.30972373,103400.0,103390.0,0.88381237]
[1750443110088,0.30972373,103400.0,103390.0,1.43241258]
[1750443112992,0.30972373,103400.0,103390.0,0.88381237]
[1750443113187,0.30972373,103400.0,103390.0,1.43241258]
[1750443114491,0.11631333,103400.0,103390.0,1.43241258]
[1750443114999,0.11631333,103400.0,103390.0,1.32259173]
[1750443116689,0.30972383,103400.0,103390.0,1.58345237]
[1750443117090,0.30972383,103400.0,103390.0,2.02223173]
[1750443117294,0.11631333,103400.0,103390.0,2.02223173]
[1750443117696,0.11531333,103400.0,103390.0,2.02223173]
[1750443117902,0.11531333,103400.0,103390.0,2.02323173]
[1750443118098,0.11531333,103400.0,103390.0,2.02423173]
[1750443118299,0.11631333,103400.0,103390.0,2.02323173]
[1750443118493,0.30972383,103400.0,103390.0,2.02323173]
[1750443119390,0.17424605,103400.0,103390.0,2.02323173]
[1750443119795,0.36765655,103400.0,103390.0,2.02323173]
[1750443120090,0.36665655,103400.0,103390.0,2.02423173]
[1750443120294,0.36665655,103400.0,103390.0,2.01379654]
[1750443120494,0.17324605,103400.0,103390.0,2.01379654]
[1750443121100,0.17424605,103400.0,103390.0,2.01279654]
[1750443121397,0.36765645,103400.0,103390.0,2.01279654]
[1750443121596,0.36765645,103400.0,103390.0,1.57401718]
[1750443121800,0.36765645,103400.0,103390.0,2.01279654]
[1750443122193,0.11631333,103400.0,103390.0,2.01279654]
[1750443122589,0.002,103400.0,103390.0,2.01279654]
[1750443122790,0.001,103430.0,103420.0,0.193373]
[1750443123095,0.001,103430.0,103420.0,1.91794905]
[1750443123096,0.38591125,103430.0,103420.0,1.91794905]
[1750443123293,0.44431125,103430.0,103420.0,1.91794905]
[1750443123700,0.25095695,103430.0,103420.0,1.91794905]
[1750443123999,0.44431125,103430.0,103420.0,1.91794905]
[1750443124397,0.2527543,103430.0,103420.0,0.4198]
[1750443124603,0.36706763,103430.0,103420.0,0.24032]
[1750443124799,0.42756763,103430.0,103420.0,0.24032]
[1750443125103,0.86634699,103430.0,103420.0,0.18132]
[1750443125303,0.86634699,103430.0,103420.0,0.18172]
[1750443125904,0.86634699,103430.0,103420.0,0.375093]
[1750443126206,0.42756763,103430.0,103420.0,0.81387236]
[1750443126502,0.42756763,103430.0,103420.0,0.87647236]
[1750443127308,0.17371333,103430.0,103420.0,0.87647236]
[1750443127701,0.17371333,103430.0,103420.0,1.23727236]
[1750443128006,0.36706763,103430.0,103420.0,1.23727236]
[1750443129704,0.36706763,103430.0,103420.0,0.798493]
[1750443130809,0.36706763,103430.0,103420.0,0.437693]
[1750443134102,1.49614699,103430.0,103420.0,0.0004]
[1750443134305,0.1933917,103410.0,103400.0,0.3746755]
[1750443134608,0.32374976,103410.0,103400.0,0.4952755]
[1750443134909,0.32374976,103410.0,103400.0,0.4956755]
[1750443135112,0.32374976,103410.0,103400.0,0.93445486]
[1750443135113,0.38264976,103410.0,103400.0,0.93445486]
[1750443136211,0.44214976,103410.0,103400.0,0.93445486]
[1750443136514,0.44214976,103410.0,103400.0,0.4976755]
[1750443137811,0.88092912,103410.0,103400.0,0.30428]
[1750443138006,0.88092912,103410.0,103390.0,0.19982095]
[1750443138007,0.1934104,103400.0,103390.0,0.19982095]
[1750443138309,1.16580309,103400.0,103390.0,0.01854095]
[1750443138513,1.28530309,103400.0,103390.0,0.01854095]
[1750443138811,1.28530309,103400.0,103390.0,0.01774095]
[1750443139012,1.28530309,103400.0,103390.0,0.01814095]
[1750443139215,0.1934291,103390.0,103380.0,0.4979161]
[1750443139415,1.18163325,103390.0,103380.0,0.30528]
[1750443139618,1.24043325,103390.0,103380.0,0.30528]
[1750443139907,0.1934478,103380.0,103370.0,0.79358917]
[1750443140113,0.36626113,103380.0,103370.0,0.91448917]
[1750443140705,0.36626113,103380.0,103370.0,0.97668917]
[1750443141107,0.36626113,103380.0,103370.0,0.98368917]
[1750443141306,0.36626113,103380.0,103370.0,1.42246853]
[1750443141905,1.16584049,103380.0,103370.0,0.0078]
[1750443142113,1.22864049,103380.0,103370.0,0.0118]
[1750443142314,1.22864049,103380.0,103370.0,0.011]
[1750443142315,1.28804049,103380.0,103370.0,0.011]
[1750443142509,1.28804049,103380.0,103370.0,0.0114]
[1750443142806,1.42274434,103380.0,103370.0,0.0114]
[1750443143009,1.80369234,103380.0,103370.0,0.0084]
[1750443143211,2.2338195,103380.0,103370.0,0.003]
[1750443143418,0.1934665,103370.0,103360.0,0.0008]
[1750443143613,1.93840854,103370.0,103360.0,0.0008]
[1750443143812,0.1934852,103360.0,103350.0,0.13905914]
[1750443144016,1.22657789,103360.0,103350.0,0.1214]
[1750443144313,1.22657789,103360.0,103350.0,0.3149039]
[1750443144519,1.22657789,103360.0,103350.0,0.1214]
[1750443144820,0.78779853,103360.0,103350.0,0.1234]
[1750443145220,1.33685732,103360.0,103350.0,0.002]
[1750443145523,1.40645732,103360.0,103350.0,0.002]
[1750443145911,1.40645732,103360.0,103350.0,0.0024]
[1750443146109,1.40645732,103360.0,103350.0,0.0034]
[1750443146717,0.85739853,103360.0,103350.0,0.0034]
[1750443146912,1.40645732,103360.0,103350.0,0.0034]
[1750443147516,0.1935039,103350.0,103340.0,0.00176763]
[1750443147815,0.1935413,103330.0,103320.0,0.6511367]
[1750443148008,2.07409635,103330.0,103320.0,0.0008]
[1750443148214,0.1935601,103320.0,103310.0,0.41103021]
[1750443148514,0.30787343,103320.0,103310.0,0.47413021]
[1750443148715,0.30787343,103320.0,103310.0,0.83493021]
[1750443148914,0.30787343,103320.0,103310.0,0.47413021]
[1750443149115,0.30602383,103330.0,103320.0,0.19356]
[1750443149317,0.90460593,103330.0,103320.0,0.27399122]
[1750443149517,0.32355926,103330.0,103320.0,0.14273122]
[1750443149924,1.21772242,103330.0,103320.0,0.0628]
[1750443150217,1.29723094,103330.0,103320.0,0.0688]
[1750443150620,1.29723094,103330.0,103320.0,0.26236]
[1750443150923,1.29723094,103330.0,103320.0,0.25736]
[1750443151117,1.35853094,103330.0,103320.0,0.25736]
[1750443151620,0.93423094,103330.0,103320.0,0.25736]
[1750443151820,0.93423094,103330.0,103320.0,0.0638]
[1750443152011,1.29503094,103330.0,103320.0,0.0638]
[1750443152213,1.29466756,103330.0,103320.0,0.0638]
[1750443153527,1.36476756,103330.0,103320.0,0.001]
[1750443153720,1.42676756,103330.0,103320.0,0.001]
[1750443154024,1.73676756,103330.0,103320.0,0.001]
[1750443154225,1.87696933,103330.0,103320.0,0.001]
[1750443154427,1.87696933,103330.0,103320.0,0.0014]
[1750443154726,1.87696933,103330.0,103320.0,0.001]
[1750443154923,2.23168933,103330.0,103320.0,0.0014]
[1750443155120,1.91263054,103330.0,103320.0,0.001]
[1750443155324,2.46168933,103330.0,103320.0,0.0014]
[1750443155627,2.16268933,103330.0,103320.0,0.0014]
[1750443155823,1.46808518,103330.0,103320.0,0.0014]
[1750443156025,1.80200518,103330.0,103320.0,0.0014]
[1750443156226,2.16280518,103330.0,103320.0,0.0014]
[1750443157819,2.14704419,103330.0,103320.0,0.0014]
[1750443158726,2.16300185,103330.0,103320.0,0.0014]
[1750443161132,1.39608008,103330.0,103320.0,0.0014]
[1750443161324,1.59188242,103330.0,103320.0,0.0014]
[1750443161535,1.95268242,103330.0,103320.0,0.1176]
[1750443161729,2.02898921,103330.0,103320.0,0.1176]
[1750443161925,2.02898921,103330.0,103320.0,0.0583]
[1750443162839,2.03916387,103330.0,103320.0,0.0583]
[1750443164032,2.10076387,103330.0,103320.0,0.0583]
[1750443164339,2.16146387,103330.0,103320.0,0.001]
[1750443164539,2.16146387,103330.0,103320.0,0.0014]
[1750443165237,0.19356,103320.0,103310.0,0.00096791]
[1750443165437,0.3387717,103310.0,103300.0,0.0008]
[1750443165642,2.67887081,103310.0,103300.0,0.0008]
[1750443165836,2.89444229,103310.0,103300.0,0.0008]
[1750443166044,0.1935974,103300.0,103290.0,0.1157]
[1750443166246,1.33736951,103300.0,103290.0,0.1157]
[1750443166536,1.33736951,103300.0,103290.0,0.0004]
[1750443166537,1.40736951,103300.0,103290.0,0.0004]
[1750443166742,0.20927677,103290.0,103280.0,0.07474017]
[1750443166930,2.04636888,103290.0,103280.0,0.07554017]
[1750443167132,2.04636888,103290.0,103280.0,0.07474017]
[1750443167340,2.04636888,103290.0,103280.0,0.07514017]
[1750443167536,2.04636888,103290.0,103280.0,0.07474017]
[1750443167736,2.04636888,103290.0,103280.0,0.07514017]
[1750443167941,2.04636888,103290.0,103280.0,0.00136819]
[1750443168131,2.40891375,103290.0,103280.0,0.00136819]
[1750443168328,2.97092514,103290.0,103260.0,0.119]
[1750443168532,2.97092514,103290.0,103260.0,0.1795]
[1750443168533,0.87305829,103270.0,103260.0,0.1795]
[1750443168734,1.56617829,103270.0,103260.0,0.1795]
[1750443169046,1.62857829,103270.0,103260.0,0.1795]
[1750443169440,1.98937829,103270.0,103260.0,0.0008]
[1750443169639,1.98937829,103270.0,103250.0,0.17586848]
[1750443169640,0.1936723,103260.0,103250.0,0.17586848]
[1750443169938,1.21784441,103260.0,103250.0,0.17586848]
[1750443170445,1.21784441,103260.0,103250.0,0.17666848]
[1750443170644,1.21784441,103260.0,103250.0,0.17586848]
[1750443171043,1.21784441,103260.0,103250.0,0.18026848]
[1750443171341,1.21784441,103260.0,103250.0,0.12386848]
[1750443171542,1.33744441,103260.0,103250.0,0.12386848]
[1750443171732,1.33744441,103260.0,103250.0,0.12346848]
[1750443172045,1.33744441,103260.0,103250.0,0.12586848]
[1750443173332,1.33744441,103260.0,103250.0,0.12386848]
[1750443173531,1.33744441,103260.0,103250.0,0.00136848]
[1750443173532,1.41438079,103260.0,103250.0,0.00136848]
[1750443173737,1.29478079,103260.0,103250.0,0.00096848]
[1750443174037,1.98734079,103260.0,103250.0,0.00136848]
[1750443174238,1.98734079,103260.0,103250.0,0.17386848]
[1750443174648,2.04484079,103260.0,103250.0,0.17386848]
[1750443175238,2.04484079,103260.0,103250.0,0.11686848]
[1750443175543,2.10144079,103260.0,103250.0,0.00136848]
[1750443175740,2.21124477,103260.0,103250.0,0.00096848]
[1750443176043,2.40494077,103260.0,103250.0,0.00136848]
[1750443176244,2.41494077,103260.0,103250.0,0.00136848]
[1750443176833,1.52868477,103260.0,103250.0,0.00136848]
[1750443177033,2.22088477,103260.0,103250.0,0.00136848]
[1750443177243,2.22088477,103260.0,103250.0,0.06166848]
[1750443177740,2.02721247,103260.0,103250.0,0.06166848]
[1750443178046,2.22088477,103260.0,103250.0,0.06166848]
[1750443178245,2.22088477,103260.0,103250.0,0.00136848]
[1750443178440,0.2094187,103250.0,103240.0,0.0008]
[1750443178642,1.29579081,103250.0,103240.0,0.0603]
[1750443179044,1.29579081,103250.0,103240.0,0.0607]
[1750443179642,1.92555081,103250.0,103240.0,0.1216]
[1750443179940,1.92555081,103250.0,103240.0,0.0607]
[1750443182049,0.20956747,103230.0,103220.0,0.74327063]
[1750443183449,0.21056747,103230.0,103220.0,0.74327063]
[1750443186952,0.21056747,103230.0,103220.0,0.54952413]
[1750443187150,0.6508714,103230.0,103220.0,0.54952413]
[1750443187451,0.6508714,103230.0,103220.0,0.74327053]
[1750443187647,0.6508714,103230.0,103220.0,0.54952413]
[1750443187852,0.6508714,103230.0,103220.0,0.18872413]
[1750443188952,0.76100627,103230.0,103220.0,0.18872413]
[1750443190654,0.21056747,103230.0,103220.0,0.18872413]
[1750443191762,0.21056747,103230.0,103220.0,0.38247063]
[1750443192053,0.21056747,103230.0,103220.0,0.18872413]
[1750443193249,0.1947277,103230.0,103220.0,0.74327053]
[1750443193859,0.7451665,103230.0,103220.0,0.54952413]
[1750443194353,1.22027982,103230.0,103220.0,0.18872413]
[1750443194854,1.22027982,103230.0,103220.0,0.11466876]
[1750443195162,1.32797982,103230.0,103220.0,0.11466876]
[1750443195657,2.01797982,103230.0,103220.0,0.11466876]
[1750443195858,2.01797982,103230.0,103220.0,0.11386876]
[1750443196455,2.07546417,103230.0,103220.0,0.11386876]
[1750443196761,2.07546417,103230.0,103220.0,0.11426876]
[1750443196957,1.96517982,103230.0,103220.0,0.11426876]
[1750443197252,1.60437982,103230.0,103220.0,0.16916876]
[1750443197459,1.66186417,103230.0,103220.0,0.16916876]
[1750443197648,1.60437982,103230.0,103220.0,0.16916876]
[1750443197846,1.66186417,103230.0,103220.0,0.16916876]
[1750443198056,2.02266417,103230.0,103220.0,0.16916876]
[1750443198255,1.47222537,103230.0,103220.0,0.16916876]
[1750443198452,2.02266417,103230.0,103220.0,0.16916876]
[1750443199148,1.66186417,103230.0,103220.0,0.16916876]
[1750443201162,1.66186417,103230.0,103220.0,0.11426876]
[1750443201356,2.07856417,103230.0,103220.0,0.11426876]
[1750443202057,1.71776417,103230.0,103220.0,0.11426876]
[1750443202362,1.66186417,103230.0,103220.0,0.11426876]
[1750443203455,1.60437982,103230.0,103220.0,0.11426876]
[1750443203757,1.66241053,103230.0,103220.0,0.11426876]
[1750443203958,1.66241019,103230.0,103220.0,0.11426876]
[1750443204153,2.02321019,103230.0,103220.0,0.11426876]
[1750443204360,1.96517982,103230.0,103220.0,0.11426876]
[1750443204657,2.02167982,103230.0,103220.0,0.11426876]
[1750443204965,2.02167982,103230.0,103220.0,0.05456876]
[1750443205166,2.09832562,103230.0,103220.0,0.00136876]
[1750443206166,1.54788682,103230.0,103220.0,0.00096876]
[1750443206457,2.10860838,103230.0,103220.0,0.00136876]
[1750443206663,2.10860838,103230.0,103220.0,0.05726876]
[1750443207563,1.54788682,103230.0,103220.0,0.05726876]